Cogmind - Beta 11 X7 @@@ ROGUE MODE // 2021.10.05 @ 15:37:39 Player: Minty Result: Destroyed by H5-Q50(z) with Makeshift Shrapnel Gun Performance ------------- Evolutions (1) 500 Regions Visited (5) 1000 Robots Destroyed (74) 370 Value Destroyed (1384) 1384 Prototype IDs (3) 60 Alien Tech Used (0) 0 Bonus (173) 173 TOTAL SCORE: 3487 Bonus ------- Met Imprinter 300 Friendly Fire -127 Cogmind --------- Core Integrity 0/400 Matter 234/300 Energy 115/125 System Corruption 0% Temperature Cool (60) Movement Walking (140) Location -7/Zion Parts ------- > --- POWER (1) -------- Light Ion Engine > --- PROPULSION (2) --- Makeshift Leg Makeshift Leg > --- UTILITY (3) ------ Signal Interpreter > --- WEAPON (3) ------- Heavy Laser Improved Assault Rifle Improved Assault Rifle > --- INVENTORY (5) ---- Light Treads Rocket Launcher Stasis Trap (100%) Peak State ------------ > --- POWER ------------ Ion Engine > --- PROPULSION ------- Improved Titanium Leg Makeshift Leg > --- UTILITY ---------- Small Storage Unit Signal Interpreter > --- WEAPON ----------- Heavy Laser Heavy Laser RU-N14's Throwing Claymores > --- INVENTORY -------- Light Ion Engine Light Treads Improved Medium Laser Improved Assault Rifle Improved Assault Rifle Improved Assault Rifle Rocket Launcher Stasis Trap [Rating: 27] Favorites ----------- Power Improved Ion Engine Engine Improved Ion Engine Propulsion Aluminum Leg Treads Light Treads Leg Aluminum Leg Utility Signal Interpreter Device Heat Sink Storage Small Storage Unit Processor Signal Interpreter Weapon Improved Medium Laser Energy Gun Improved Medium Laser Ballistic Gun Improved Assault Rifle Launcher RU-N14's Throwing Claymores Build | -11 -10 -10 -9 -9 -7 ------- Run | Scr Mat Min Mat Min Zio Slots Evolved 2 | . . . 2 . . Power . | . . . . . . Propulsion . | . . . . . . Utility 1 | . . . 1 . . Weapon 1 | . . . 1 . . Parts Attached 37 | . 4 . 10 13 10 Power 4 | . . . 1 2 1 Engine 4 | . . . 1 2 1 Core . | . . . . . . Reactor . | . . . . . . Propulsion 6 | . . . 1 2 3 Treads 2 | . . . . 2 . Leg 4 | . . . 1 . 3 Wheel . | . . . . . . Hover . | . . . . . . Flight . | . . . . . . Utility 4 | . 1 . . 2 1 Device 3 | . . . . 2 1 Storage . | . . . . . . Processor 1 | . 1 . . . . Hackware . | . . . . . . Protection . | . . . . . . Artifact . | . . . . . . Weapon 23 | . 3 . 8 7 5 Energy Gun 7 | . . . 3 3 1 Energy Cannon . | . . . . . . Ballistic Gun 13 | . 3 . 5 2 3 Ballistic Cannon . | . . . . . . Launcher 3 | . . . . 2 1 Special Weapon . | . . . . . . Impact Weapon . | . . . . . . Slashing Weapon . | . . . . . . Piercing Weapon . | . . . . . . Special Melee Weapon . | . . . . . . Unidentified Prototypes 3 | . 1 . 1 . 1 Parts Lost 11 | . . . . 4 7 Power 2 | . . . . 1 1 Propulsion 4 | . . . . 2 2 Utility 2 | . . . . . 2 Weapon 3 | . . . . 1 2 Highest Loss Streak 4 | . . . . 1 4 Average Slot Usage (%) 87 | . 96 100 88 79 94 Engine 10 | . 14 14 11 9 10 Treads 5 | . . . . 8 8 Leg 12 | . 28 28 22 4 11 Device 2 | . . . . 1 8 Storage 11 | . 14 14 11 11 10 Processor 11 | . 11 14 11 11 11 Energy Gun 17 | . . . 7 24 19 Ballistic Gun 14 | . 26 28 25 7 10 Naked Turns . | . . . . . . Heaviest Build 27 | 12 14 14 21 22 27 Greatest Support 40 | 20 20 20 20 40 40 Greatest Overweight (x) 2 | . . . 1 2 1 Average Overweight (x) . | . . . . . . Largest Inventory Capacity 8 | 8 8 8 8 8 8 Average Capacity 7 | 8 8 8 8 8 7 Most Carried 8 | 6 8 8 8 8 8 Average Carried 7 | 6 7 8 7 7 7 Final Capacity 8 | 8 8 8 8 8 5 Final Carried 8 | 6 8 8 8 8 3 Class Distribution -------------------- 88% | Gunner 11% | Mutant Dominant Class ---------------- Mutant | -10/Materials Mutant | -10/Mines Gunner | -9/Materials Gunner | -9/Mines Gunner | -7/Zion Resources | -11 -10 -10 -9 -9 -7 ----------- Run | Scr Mat Min Mat Min Zio Matter Collected 1057 | 200 24 . 356 298 179 Remotely . | . . . . . . Salvage Created 2193 | . 120 . 762 666 645 Parts 177 | . 18 . 47 61 51 Haulers Intercepted 3 | . . . 3 . . Recyclers Shooed 1 | . . . 1 . . Parts Field Recycled . | . . . . . . Retrieved Matter . | . . . . . . Parts Self-Destructed . | . . . . . . Prevented . | . . . . . . Kills | -11 -10 -10 -9 -9 -7 ------- Run | Scr Mat Min Mat Min Zio Combat Hostiles Destroyed 37 | . 3 1 13 18 2 Guns 36 | . 3 1 13 18 1 AOE 1 | . . . . . 1 Classes Destroyed 12 | . 4 1 3 2 2 Worker 2 | . . . . 2 . Builder 2 | . 1 . . 1 . Tunneler 4 | . . . . 4 . Hauler 3 | . . . 3 . . Operator 2 | . 1 . 1 . . Watcher 4 | . 2 . 2 . . Swarmer 11 | . 3 . 1 7 . Grunt 20 | . . . 9 11 . Sentry 3 | . . . 3 . . Demolisher 1 | . . 1 . . . Zionite 33 | . . . . . 33 Mutant 1 | . . . . . 1 Best Kill Streak 15 | . 3 1 5 15 12 Combat Bots Only 9 | . 3 1 3 9 1 Max Kills in Single Turn 2 | . 2 1 1 2 2 Gunslinging 1 | . 1 . . 1 . Exploded 1 | . . . . . 1 Melee . | . . . . . . Uniques/NPCs Destroyed 1 | . . . . . 1 Imprinter (-7/Zion) Combat | -11 -10 -10 -9 -9 -7 -------- Run | Scr Mat Min Mat Min Zio Damage Taken 2316 | . 12 327 443 436 1098 Core 454 | . . 53 54 130 217 Absorbed by Shields . | . . . . . . Core Remaining (%) 89 | 100 . 78 . . . Volleys Fired 128 | . 7 2 33 36 50 Largest 3 | . 2 2 3 3 3 Hottest 168 | . 46 46 135 168 161 Shots Fired 352 | . 14 4 99 102 133 Gun 338 | . 14 4 99 98 123 Cannon . | . . . . . . Launcher 14 | . . . . 4 10 Special . | . . . . . . Kinetic 185 | . 14 4 97 20 50 Thermal 153 | . . . 2 78 73 Explosive 14 | . . . . 4 10 Electromagnetic . | . . . . . . Robot Hit Streak 9 | . 6 2 8 7 9 Robot Miss Streak 4 | . 2 1 4 3 3 Penetration Max . | . . . . . . Secondary Targets 17 | . 1 1 4 4 7 Max Gunslinging Chain 1 | . 1 1 1 1 1 Shots Hit Robots 190 | . 10 2 59 44 75 Core Hits 101 | . 8 1 29 25 38 Critical Kills . | . . . . . . Critical Parts Destroyed 1 | . . . . . 1 Critical Strikes 8 | . . . . 3 5 Burn 6 | . . . . 3 3 Destroy 1 | . . . . . 1 Sever 1 | . . . . . 1 Melee Attacks . | . . . . . . Impact . | . . . . . . Slashing . | . . . . . . Piercing . | . . . . . . Sneak Attacks . | . . . . . . Combat Hostiles . | . . . . . . Follow-up Attacks . | . . . . . . Damage Inflicted 3949 | . 151 49 972 832 1945 Guns 3251 | . 151 47 965 832 1256 Cannons 139 | . . . . . 139 Explosions 550 | . . . . . 550 Melee . | . . . . . . Ramming 9 | . . 2 7 . . Kinetic 1645 | . 151 47 930 49 468 Thermal 1606 | . . . 35 783 788 Explosive 550 | . . . . . 550 Electromagnetic . | . . . . . . Impact . | . . . . . . Slashing 139 | . . . . . 139 Piercing . | . . . . . . Highest Corruption . | . . . . . . Average Corruption . | . . . . . . Corruption Purged . | . . . . . . Overload Shots . | . . . . . . Overflow Damage 19 | . . . . 19 . Projectiles . | . . . . . . Explosions 19 | . . . . 19 . Melee . | . . . . . . Knockbacks . | . . . . . . Impact . | . . . . . . Kinetic . | . . . . . . Secondary . | . . . . . . Self-Inflicted Damage 113 | . . . . 113 . Shots 3 | . . . . 3 . Rammed . | . . . . . . Targets Rammed 3 | . . 1 2 . . Kicked 3 | . . 1 2 . . Crushed . | . . . . . . Highest Temperature 445 | . 210 . 69 445 344 Average Temperature 93 | . 104 . 15 122 107 Received Heat Transfer 459 | . . . 237 78 144 Effects 9 | . . . . 4 5 Shutdowns 1 | . . . . 1 . Energy Bleed 1 | . . . . 1 . Interference 5 | . . . . . 5 Short Circuit 2 | . . . . 2 . Siege Activations . | . . . . . . Robots Corrupted . | . . . . . . Combat Hostiles . | . . . . . . Parts Fried . | . . . . . . Impact Corruptions . | . . . . . . Robots Melted . | . . . . . . Combat Hostiles . | . . . . . . Parts Melted 4 | . . . 1 . 3 Heat Transferred 3662 | . . . 74 1924 1664 Parts Sabotaged . | . . . . . . Parts Stolen . | . . . . . . Parts Stripped . | . . . . . . Power Chain Reactions . | . . . . . . Missiles Intercepted . | . . . . . . Alert | -11 -10 -10 -9 -9 -7 ------- Run | Scr Mat Min Mat Min Zio Peak Influence 326 | . 141 84 326 240 . Initial 68 | . . 54 32 68 . Average 84 | . 42 57 126 65 . Maximum Alert Level 1 | . . . 1 1 . Low Security (%) 88 | 100 100 100 82 90 . Level 1 11 | . . . 17 9 . Level 2 . | . . . . . . Level 3 . | . . . . . . Level 4 . | . . . . . . Level 5 . | . . . . . . High Security . | . . . . . . Max Security . | . . . . . . Squads Dispatched 3 | . . . 2 1 . Investigation 2 | . . . 1 1 . Extermination . | . . . . . . Reinforcement 1 | . . . 1 . . Assault . | . . . . . . Garrison . | . . . . . . Intercept . | . . . . . . Construction Impeded . | . . . . . . Haulers Reinforced . | . . . . . . Active Scanning Responses . | . . . . . . Cargo Convoy Interrupts . | . . . . . . Stealth | -11 -10 -10 -9 -9 -7 --------- Run | Scr Mat Min Mat Min Zio Distress Signals 2 | . 1 . 1 . . Communications Jammed . | . . . . . . Distress Signals . | . . . . . . Times Spotted 97 | . 5 16 20 17 39 Peak Tracking Total 14 | . 4 14 4 3 6 Tactical Retreats 3 | . . 1 . . 2 Traps | -11 -10 -10 -9 -9 -7 ------- Run | Scr Mat Min Mat Min Zio Traps Triggered . | . . . . . . Indirectly . | . . . . . . Trap Hack Attempts . | . . . . . . Triggered . | . . . . . . Disarmed . | . . . . . . Reprogrammed 6 | . 6 . . . . Reused . | . . . . . . Traps Extracted . | . . . . . . Installed . | . . . . . . Triggered . | . . . . . . Machines | -11 -10 -10 -9 -9 -7 ---------- Run | Scr Mat Min Mat Min Zio Machines Disabled 1 | . . . . 1 . Max in Single Turn 1 | . . . . 1 . Machines Sabotaged . | . . . . . . Garrisons Compromised . | . . . . . . Overloaded Fab Kills . | . . . . . . Fab Network Shutdowns . | . . . . . . Hacking | -11 -10 -10 -9 -9 -7 --------- Run | Scr Mat Min Mat Min Zio Machines Accessed 9 | . 3 . 4 1 1 Terminals 7 | . 3 . 4 . . Fabricators . | . . . . . . Repair Stations . | . . . . . . Recycling Units . | . . . . . . Scanalyzers . | . . . . . . Garrison Access . | . . . . . . Total Hacks 26 | . 8 . 14 1 3 Successful 21 | . 7 . 10 1 3 Failed 5 | . 1 . 4 . . Catastrophic 2 | . . . 2 . . Database Lockouts . | . . . . . . Manual 17 | . 6 . 10 . 1 Terminals 22 | . 8 . 14 . . Fabricators . | . . . . . . Repair Stations . | . . . . . . Recycling Units . | . . . . . . Scanalyzers . | . . . . . . Garrison Access . | . . . . . . Terminal Hacks 13 | . 4 . 5 1 3 Part Schematic 3 | . . . . . 3 Open Door 1 | . . . . 1 . Level Access Points 1 | . . . 1 . . Branch Access Points 1 | . 1 . . . . Alert Level 3 | . 1 . 2 . . Unreport Threat 1 | . . . 1 . . Reprogram Traps 1 | . 1 . . . . Maintenance Status 1 | . 1 . . . . Surveillance Status 1 | . . . 1 . . Fabricator Hacks . | . . . . . . Repair Station Hacks . | . . . . . . Recycling Unit Hacks . | . . . . . . Scanalyzer . | . . . . . . Garrison Access Hacks . | . . . . . . Unauthorized Hacks 7 | . 3 . 4 . . Terminals 7 | . 3 . 4 . . Botnet 7 | . 3 . 4 . . Fabricators . | . . . . . . Repair Stations . | . . . . . . Recycling Units . | . . . . . . Scanalyzers . | . . . . . . Garrison Access . | . . . . . . Data Cores Recovered 2 | . 1 . 1 . . Used 1 | . 1 . . . . Hacking Detections 3 | . 1 . 2 . . Full Trace Events 1 | . . . 1 . . Feedback Events . | . . . . . . Feedback Blocked . | . . . . . . Robot Schematics Acquired . | . . . . . . Robots Built . | . . . . . . Matter . | . . . . . . Time . | . . . . . . Total Robot Build Rating . | . . . . . . Part Schematics Acquired 3 | . . . . . 3 Parts Built . | . . . . . . Matter . | . . . . . . Time . | . . . . . . Total Part Build Rating . | . . . . . . Parts Repaired . | . . . . . . Time . | . . . . . . Parts Recycled . | . . . . . . Recycled Matter . | . . . . . . Retrieved Matter . | . . . . . . Retrieved Components . | . . . . . . Parts Scanalyzed . | . . . . . . Part Schematics Acquired . | . . . . . . Parts Damaged . | . . . . . . Bothacking | -11 -10 -10 -9 -9 -7 ------------ Run | Scr Mat Min Mat Min Zio Used RIF Installer . | . . . . . . Robots Hacked . | . . . . . . Non-combat . | . . . . . . Combat . | . . . . . . Robot Hacks Applied . | . . . . . . Relay Couplers Released . | . . . . . . Robots Rewired . | . . . . . . Allies Hacked . | . . . . . . Hacks Repelled . | . . . . . . Allies | -11 -10 -10 -9 -9 -7 -------- Run | Scr Mat Min Mat Min Zio Total Allies . | . . . . . . Largest Group . | . . . . . . Highest-Rated Group . | . . . . . . Highest-Rated Ally . | . . . . . . Total Orders . | . . . . . . Ally Attacks . | . . . . . . Total Damage . | . . . . . . Kills . | . . . . . . Allies Corrupted . | . . . . . . Allies Melted 1 | . . 1 . . . Intel | -11 -10 -10 -9 -9 -7 ------- Run | Scr Mat Min Mat Min Zio Robot Analysis Total . | . . . . . . Derelict Logs Recovered 1 | . . . . 1 . Drone Launches . | . . . . . . Drone Recoveries . | . . . . . . Exploration | -11 -10 -10 -9 -9 -7 ------------- Run | Scr Mat Min Mat Min Zio Turns Passed 3512 | 5 192 104 892 1401 918 Spaces Moved 1320 | 5 132 81 385 350 367 Core . | . . . . . . Treads 213 | . . . . 197 16 Legs 1107 | 5 132 81 385 153 351 Wheels . | . . . . . . Hover . | . . . . . . Flight . | . . . . . . Fastest Speed 120 | 120 120 120 120 160 140 Average Speed 189 | 120 120 120 197 211 202 Slowest Speed 280 | 120 120 120 200 280 260 Overloaded Moves . | . . . . . . Propulsion Burnouts . | . . . . . . Robots Hopped . | . . . . . . Cave-ins Triggered . | . . . . . . Exploration Rate (%) 35 | 2 36 14 31 67 63 Regions Visited 5 Branch Regions 3 Pre-discovered Areas . | . . . . . . Known Exits Taken 4 | . 1 1 1 1 . Unknown Exits Taken 1 | 1 . . . . . Scrap Searched 3 | . . . . 1 2 Spaces Dug 9 | . . . . 9 . Terrain Destroyed 64 | . . . . 28 36 Melee . | . . . . . . Projectile . | . . . . . . AOE 64 | . . . . 28 36 Terrain Rammed . | . . . . . . Walls Destroyed . | . . . . . . Machines Disabled . | . . . . . . Actions | -11 -10 -10 -9 -9 -7 --------- Run | Scr Mat Min Mat Min Zio Total 2050 | 4 155 83 442 932 434 Wait 534 | . . . 3 527 4 Move 1315 | 4 131 80 384 349 367 Hop . | . . . . . . Pick Up 7 | . 5 . 1 1 . Fast Attach 17 | . 3 . 4 4 6 Attach 9 | . . . 1 4 4 Detach 7 | . 2 . 2 3 . Swap 11 | . 1 . 5 5 . Drop 19 | . 6 . 7 3 3 Fire 128 | . 7 2 33 36 50 Melee . | . . . . . . Ram . | . . . . . . Kick 3 | . . 1 2 . . Crush . | . . . . . . Escape Stasis . | . . . . . . Rewire . | . . . . . . Trap . | . . . . . . Miscellaneous . | . . . . . . Route ------- -11/Scrapyard -10/Materials -10/Mines -9/Materials (discovered 4 exits: Mat x3 / *Min) -9/Mines -7/Zion History --------- Turn | Location | Event 1 | -11/Scrapyard | Discovered new exit (range 3) 6 | -11/Scrapyard | Entered Materials 54 | -10/Materials | Identified exit to Mines 198 | -10/Materials | Entered Mines 205 | -10/Mines | Received a Rocket Launcher from a helpful Derelict 246 | -10/Mines | Discovered new exit (range 5) 270 | -10/Mines | Assembled infested the area 275 | -10/Mines | Assisted by a Guerilla fighting off Assembled 300 | -10/Mines | Identified exit to Materials 302 | -10/Mines | Entered Materials 302 | -9/Materials | Evolved 2 slots: Utility x1, Weapon x1 608 | -9/Materials | Build established: Gunner 738 | -9/Materials | Identified exit to Materials 1152 | -9/Materials | Discovered new exit (range 8) 1192 | -9/Materials | Identified exit to Mines 1194 | -9/Materials | Entered Mines 1235 | -9/Mines | Met a Derelict bent on vengeance 1628 | -9/Mines | Learned 2 Materials zone layouts 1730 | -9/Mines | Found a hidden stash of uninstalled traps 1788 | -9/Mines | Excavation squad dispatched 1788 | -9/Mines | A large section of the Mines collapsed 2038 | -9/Mines | Excavation squad dispatched 2288 | -9/Mines | Excavation squad dispatched 2495 | -9/Mines | Destroyed 9 combat bots 2528 | -9/Mines | Met a Derelict shopkeep closing up shop 2538 | -9/Mines | Excavation squad dispatched 2581 | -9/Mines | A Derelict revealed a hidden shortcut to a safe place 2593 | -9/Mines | Identified exit to Zion 2595 | -9/Mines | Entered Zion 2849 | -7/Zion | Received a visual enhancement algorithm 3159 | -7/Zion | Found Prototype Launcher 3159 | -7/Zion | Identified RU-N14's Throwing Claymores 3209 | -7/Zion | Attacked by Zionites 3227 | -7/Zion | Core integrity fell below 50% 3251 | -7/Zion | Destroyed Imprinter 3350 | -7/Zion | Core integrity fell below 20% 3381 | -7/Zion | Lost 4 parts (2n1u1w) 3480 | -7/Zion | Lost 3 parts (1p1u1w) 3513 | -7/Zion | Destroyed by H5-Q50(z) with Makeshift Shrapnel Gun Last Messages --------------- 03458_ WK-R6F(z) pulls a Mak. Sword out of the Twisted Machinery. 03459_ Acquired Mak. Leg. 03464_ WK-R6F(z) destroyed. 03467_ Acquired 27 matter. WE-2KJ(z) bursts out of the Twisted Machinery. 03481_ WE-2KJ(z) pulls a Mak. Laser out of the Twisted Machinery. 03482_ Critical hit (Burn: +37). 03484_ PY-J9U(z) pulls a Mak. Spear out of the Twisted Machinery. 03485_ WE-2KJ(z) destroyed. 03494_ PG-TKU(z) pulls a Mak. Axe out of the Twisted Machinery. 03495_ PY-J9U(z) destroyed. 03498_ PG-TKU(z) destroyed. 03503_ Acquired 22 matter. WO-RSI(z) bursts out of the Twisted Machinery. FM-23M(z) bursts out of the Twisted Machinery. 03505_ WO-RSI(z) pulls a Mak. Spear out of the Twisted Machinery. 03506_ FM-23M(z) pulls a Mak. Axe out of the Twisted Machinery. 03506_ Acquired 17 matter. 03509_ WO-RSI(z) destroyed. 03509_ Switching to secondary target: H5-Q50(z). Map ----- +----------------------------------------------------+ | = ##" """???????????????????????????? | | """ ## ## ""#"??????????????????????????? | | "" # # """??????????????????????????? | | = """ """?????????????????????????? | | %!""" """?????????????????????????? | | """ ""?????????????????????????? | | # # ""?????????????????????????? | | ## = ## ""??????????????????????????? | | [= """??????????????????????????? | | %= %= "" ""???????????????????????? | | """ % ?????????????????????? | | """""""""" " "????????????????????? | | #"""""""#" %"" "????????????????????? | | #######"#" """ """ ? ????????????????????? | | ??????#""" """"""""?? "????????????????????? | | ??????##" ["""#"#???" ""???????????????????? | | ??????#"" * ##???##"" ""#??????????????????? | | ??????##"" ""#??#"""" ""???????????????????? | | ???????##"" ""####""" "#"??????????????????# | | ????????##"" ""#"##"" ""#??????????????????# | | ?????????#"" """"""" ""#?#####????????????# | | ?????????#"" *% z """" "##?# "############?# | | ????????#""" " """" """#?# """"""""""""#?# | | ????????##"" """/ """### """"""""""""#?# | | ?????????##" "" = *%! """# ### | | ??????????#" #"" " """@ z | | ?????????#"" """"""#""" | | ?????????""" """""###"" """# ### | | ?????????##" """###"#"" ""### """"""""""""#?? | | ??????????"" """"""""" #?# """"""""""""#?? | | ??????????"" """"""" "#?# "############## | | ??????????"" " "#######???????##"" | | ??#######?"" "" """#????????????#"""" | | ??#"""""###" $ #"""""" """##????????????#""""X | | ??#" "#""" #"""""" z ""##?????????????##""" | | ??## ##""" #"#""" "##???????????????##### | | ??# X#?#" #""""" """#????????????????????? | | ### #?#" "" """ ""#"#???????????????????? | | "#"" ###" """ """""#???????????????????? | | """""" #" "" """""##??????????????????? | | """ """"#?????????????????? | | """#?????????????????? | | "###?????????????????? | | "" ""#??????????????????? | | "" "##??????????????????? | | """ """??????????????????? | | "" """ ""#??????????????????? | | """""""#??????????????????? | | """"""##??????????????????? | | """" "###"##???????????????????? | +----------------------------------------------------+ Best States ------------- Heat Dissipation 38 Energy Generation 12 Energy Capacity 265 Matter Stores 300 Matter Capacity 300 Sight Range 16 Terrain Scan Range 16 Terrain Scan Density 10 Evasion (%) 55 Recoil Reduction 1 Item Schematics ----------------- Hvy. Riot Gun | -7/Zion | Free Slug Cannon | -7/Zion | Free Flamer | -7/Zion | Free Robot Schematics ------------------ None Fabricated ------------ Nothing Alien Tech Used ----------------- None Achievements -------------- Monster Challenges ------------ None Game ------ Seed ContainmentWarpBlaster Manual? 0 Play Time 00:20:18 Cumulative 343.3 hours Start 2021.10.05 @ 15:19:27 End 2021.10.05 @ 15:37:39 Sessions 1 Manual Loads 0 Difficulty Rogue Special Mode None Game No. 238 Rogue 67 Adventurer 61 Explorer 110 Win Type - Total 19 Types 17/0/1/0/0/0/0/1/0 Lore% 61 Gallery% 83 Achievement% 66 Wizard Run 0 Options --------- ASCII 0 Keyboard 1 Movement Numpad Keybinds 0 Fullscreen 2 Font 18/X11 Map View 76x50 Tactical HUD 1 Map Filters NONE Filters NONE Steam 1 RUN: 3f838fd3-0423-45ea-8f4a-a39c6a724ea3